{"text_format":"3","workbook":"xlsx","n_sheets":28,"sheets":["BASE CONTABLE","SITUACION","Anexo 01","Anexo 02","Anexo 03","Anexo 04","Anexo 05","Anexo 06","Anexo 07","Anexo 08","Anexo 09","Anexo 10","Anexo 11","Anexo 12","Anexo 13","Anexo 14","Anexo 15","Anexo 16","Anexo 17","Anexo 18","Anexo 19","Anexo 20","Anexo 21","Anexo 22","Anexo 23","Anexo 24","Anexo 25","Anexo 26"],"not_rendered":{"macros":1,"defined_names":6,"pivot_tables":31},"read":"whole","date_system":"1900"}

{"sheet":"BASE CONTABLE","index":0,"n_rows":142,"n_cols":6,"rows_kept":142}
["Cuenta Contable","Rubro","Nomenclatura","Importe","Detalle del Estado de Situación:","Nomenclatura Anexo"]
["102101 - FONDOS FIJOS M.N","ACTIVOS CORRIENTES","Efectivo y Equivalentes de Efectivo",3000,"Anexo 01","[A 01]: Efectivo y Equivalentes de Efectivo"]
["104111 - BBVA M.N. CTA CTE 147-0200001870","ACTIVOS CORRIENTES","Efectivo y Equivalentes de Efectivo",245.61,"Anexo 01","[A 01]: Efectivo y Equivalentes de Efectivo"]
["104112 - BBVA M.E. CTA CTE 147-0300031849","ACTIVOS CORRIENTES","Efectivo y Equivalentes de Efectivo",3.47,"Anexo 01","[A 01]: Efectivo y Equivalentes de Efectivo"]
["104121 - SCOTIABANK M.N. CTA CTE 000-2872563","ACTIVOS CORRIENTES","Efectivo y Equivalentes de Efectivo",117,"Anexo 01","[A 01]: Efectivo y Equivalentes de Efectivo"]
["104122 - SCOTIANBAK M.E.CTA CTE 000-0235684","ACTIVOS CORRIENTES","Efectivo y Equivalentes de Efectivo",87.71,"Anexo 01","[A 01]: Efectivo y Equivalentes de Efectivo"]
["104131 - INTERBANK M.N. CTA CTE 041-3000369715","ACTIVOS CORRIENTES","Efectivo y Equivalentes de Efectivo",83.47,"Anexo 01","[A 01]: Efectivo y Equivalentes de Efectivo"]
["104132 - INTERBANK M.E. CTA CTE 041-3000741258","ACTIVOS CORRIENTES","Efectivo y Equivalentes de Efectivo",476.22,"Anexo 01","[A 01]: Efectivo y Equivalentes de Efectivo"]
["104141 - CTA DETRACCION 0000-34015","ACTIVOS CORRIENTES","Efectivo y Equivalentes de Efectivo",2060.22,"Anexo 01","[A 01]: Efectivo y Equivalentes de Efectivo"]
["104151 - BCO. CREDITO M.N. 193-1241637530-12","ACTIVOS CORRIENTES","Efectivo y Equivalentes de Efectivo",-4520.36,"Anexo 01","[A 01]: Efectivo y Equivalentes de Efectivo"]
["104152 - BCO DE CREDITO M.E. 193-1634125879-17","ACTIVOS CORRIENTES","Efectivo y Equivalentes de Efectivo",5998.92,"Anexo 01","[A 01]: Efectivo y Equivalentes de Efectivo"]
["104161 - BCO DE COMERCIO M.N. 110-01-0452163","ACTIVOS CORRIENTES","Efectivo y Equivalentes de Efectivo",24.1,"Anexo 01","[A 01]: Efectivo y Equivalentes de Efectivo"]
["104162 - BCO DE COMERCIO M.E. 110-02-0842368","ACTIVOS CORRIENTES","Efectivo y Equivalentes de Efectivo",73.03,"Anexo 01","[A 01]: Efectivo y Equivalentes de Efectivo"]
["104171 - BIF M.N. 7000175623","ACTIVOS CORRIENTES","Efectivo y Equivalentes de Efectivo",23.41,"Anexo 01","[A 01]: Efectivo y Equivalentes de Efectivo"]
["104172 - BIF M.E. 7000174963","ACTIVOS CORRIENTES","Efectivo y Equivalentes de Efectivo",42.21,"Anexo 01","[A 01]: Efectivo y Equivalentes de Efectivo"]
["104181 - BCO FINANCIERO M.N. 050-000541236987","ACTIVOS CORRIENTES","Efectivo y Equivalentes de Efectivo",12.47,"Anexo 01","[A 01]: Efectivo y Equivalentes de Efectivo"]
["104182 - BCO FINANCIERO M.E. 050-000541285749","ACTIVOS CORRIENTES","Efectivo y Equivalentes de Efectivo",-143.21,"Anexo 01","[A 01]: Efectivo y Equivalentes de Efectivo"]
["105012 - CERTIFICADOS BANCARIOS ME BCP 193-63251447-1-8","ACTIVOS CORRIENTES","Efectivo y Equivalentes de Efectivo",2086.85,"Anexo 01","[A 01]: Efectivo y Equivalentes de Efectivo"]
["107101 - FONDO SUJETOS A RESTRICCION MN","ACTIVOS CORRIENTES","Efectivo y Equivalentes de Efectivo",993.72,"Anexo 01","[A 01]: Efectivo y Equivalentes de Efectivo"]
["107113 - FONDO SUJETO A RESTRIC. ME BBVA 0011-0385-0450","ACTIVOS CORRIENTES","Efectivo y Equivalentes de Efectivo",3377.69,"Anexo 01","[A 01]: Efectivo y Equivalentes de Efectivo"]
["107114 - FONDO SUJETO A RESTRIC. ME BCP 193-63968542-1-7","ACTIVOS CORRIENTES","Efectivo y Equivalentes de Efectivo",2510.73,"Anexo 01","[A 01]: Efectivo y Equivalentes de Efectivo"]
["107115 - FONDO SUJETO A RESTRIC. ME INT","ACTIVOS CORRIENTES","Efectivo y Equivalentes de Efectivo",323089.6,"Anexo 01","[A 01]: Efectivo y Equivalentes de Efectivo"]
["121101 - FACTURAS POR COBRAR NO EMITIDAS TERCEROS MN","ACTIVOS CORRIENTES","Cuentas por Cobrar Comerciales (neto)",468573.17,"Anexo 02","[A 02]: Cuentas por Cobrar Comerciales (neto)"]
["121102 - FACTURAS POR COBRAR NO EMITIDAS TERCEROS ME","ACTIVOS CORRIENTES","Cuentas por Cobrar Comerciales (neto)",770378.76,"Anexo 02","[A 02]: Cuentas por Cobrar Comerciales (neto)"]
["121201 - FACTURAS POR COBRAR EMITIDAS CARTERA TERCEROS MN","ACTIVOS CORRIENTES","Cuentas por Cobrar Comerciales (neto)",306995.39,"Anexo 02","[A 02]: Cuentas por Cobrar Comerciales (neto)"]
["121202 - FACTURAS POR COBRAR EMITIDAS CARTERA TERCEROS M.E.","ACTIVOS CORRIENTES","Cuentas por Cobrar Comerciales (neto)",53974.52,"Anexo 02","[A 02]: Cuentas por Cobrar Comerciales (neto)"]
["121221 - FACTURAS POR COBRAR CARTERA TERCEROS MN (NO CTE)","ACTIVOS NO CORRIENTES","Cuentas por Cobrar Comerciales",68882.74,"Anexo 08","[A 08]: Cuentas por Cobrar Comerciales"]
["121222 - FACTURAS POR COBRAR CARTERA TERCEROS ME (NO CTE)","ACTIVOS NO CORRIENTES","Cuentas por Cobrar Comerciales",2098.65,"Anexo 08","[A 08]: Cuentas por Cobrar Comerciales"]
["122101 - ANTICIPOS DE CLIENTES TERCEROS M.N.","PASIVOS CORRIENTES","Cuentas por Pagar Comerciales",-464781.25,"Anexo 16","[A 16]: Cuentas por Pagar Comerciales"]
["122121 - ANTICIPOS DE CLIENTES TERCEROS MN (NO CTE)","PASIVOS NO CORRIENTES","Cuentas por Pagar Comerciales",-2250.51,"Anexo 19","[A 19]: Cuentas por Pagar Comerciales"]
["131231 - FACTURAS POR COBRAR EMITIDAS ASOC.RELAC.M.N.","ACTIVOS CORRIENTES","Otras Cuentas por Cobrar a Partes Relacionadas (neto)",531,"Anexo 03","[A 03]: Otras Cuentas por Cobrar a Partes Relacionadas (neto)"]
["131232 - FACTURAS POR COBRAR EMITIDAS ASOC.RELAC.M.E.","ACTIVOS CORRIENTES","Otras Cuentas por Cobrar a Partes Relacionadas (neto)",4716.6,"Anexo 03","[A 03]: Otras Cuentas por Cobrar a Partes Relacionadas (neto)"]
["131233 - FACTURAS POR COBRAR EMITIDAS ASOC.RELAC. NO CTE MN","ACTIVOS NO CORRIENTES","Otras Cuentas por Cobrar a Partes Relacionadas",415976.8,"Anexo 09","[A 09]: Otras Cuentas por Cobrar a Partes Relacionadas"]
["131234 - FACTURAS POR COBRAR EMITIDAS ASOC.RELAC. NO CTE ME","ACTIVOS NO CORRIENTES","Otras Cuentas por Cobrar a Partes Relacionadas",13698.62,"Anexo 09","[A 09]: Otras Cuentas por Cobrar a Partes Relacionadas"]
["131235 - FACTURAS POR COBRAR EMITIDAS ASOC.RELAC. ARBITRAJE","ACTIVOS NO CORRIENTES","Otras Cuentas por Cobrar a Partes Relacionadas",43088.28,"Anexo 09","[A 09]: Otras Cuentas por Cobrar a Partes Relacionadas"]
["131237 - FACTURAS POR COBRAR EMITIDAS ASOC.RELAC.INCOBRAB","ACTIVOS NO CORRIENTES","Otras Cuentas por Cobrar a Partes Relacionadas",14749.89,"Anexo 09","[A 09]: Otras Cuentas por Cobrar a Partes Relacionadas"]
["141101 - PRESTAMOS DE PERSONAL EMPLEADOS M.N.","ACTIVOS CORRIENTES","Otras Cuentas por Cobrar (neto)",2573.83,"Anexo 04","[A 04]: Otras Cuentas por Cobrar (neto)"]
["141121 - PRESTAMOS DE PERSONAL EMPLEADOS MN (NO CTE)","ACTIVOS NO CORRIENTES","Otras Cuentas por Cobrar",149655.92,"Anexo 10","[A 10]: Otras Cuentas por Cobrar"]
["141201 - ADELANTO DE RENUMERACION MN","ACTIVOS CORRIENTES","Otras Cuentas por Cobrar (neto)",199.8,"Anexo 04","[A 04]: Otras Cuentas por Cobrar (neto)"]
["141301 - ENTREGAS A RENDIR CUENTA DE PERSONAL M.N.","ACTIVOS CORRIENTES","Gastos Contratados por Anticipado",29795.95,"Anexo 05","[A 05]: Gastos Contratados por Anticipado"]
["141302 - ENTREGAS A RENDIR CUENTA DE PERSONAL M.E.","ACTIVOS CORRIENTES","Gastos Contratados por Anticipado",10065.84,"Anexo 05","[A 05]: Gastos Contratados por Anticipado"]
["161111 - COBRANZA DIVERSAS PRESTAMOS S/GARANTIA TERCEROS MN","ACTIVOS CORRIENTES","Otras Cuentas por Cobrar (neto)",500.9,"Anexo 04","[A 04]: Otras Cuentas por Cobrar (neto)"]
["161121 - COBRANZA DIVERSAS PRESTAMOS S/GARANTIA MN (NO CTE)","ACTIVOS NO CORRIENTES","Otras Cuentas por Cobrar",76898.39,"Anexo 10","[A 10]: Otras Cuentas por Cobrar"]
["162301 - RECLAMACIONES A TERCEROS ME","ACTIVOS CORRIENTES","Otras Cuentas por Cobrar (neto)",656.38,"Anexo 04","[A 04]: Otras Cuentas por Cobrar (neto)"]
["162302 - RECLAMACIONES A TERCEROS MN","ACTIVOS CORRIENTES","Otras Cuentas por Cobrar (neto)",3351.06,"Anexo 04","[A 04]: Otras Cuentas por Cobrar (neto)"]
["162402 - RENTA PAGOS A CUENTA","ACTIVOS CORRIENTES","Otros Activos",49401,"Anexo 06","[A 06]: Otros Activos"]
["162403 - RENTA ITAN","ACTIVOS CORRIENTES","Otros Activos",44282,"Anexo 06","[A 06]: Otros Activos"]
["162404 - CREDITO ANUAL RENTA","ACTIVOS CORRIENTES","Otros Activos",112800,"Anexo 06","[A 06]: Otros Activos"]
["162423 - RENTA ITAN (NO CTE)","ACTIVOS NO CORRIENTES","Otros Activos",65925,"Anexo 14","[A 14]: Otros Activos"]
["162425 - CREDITO IGV (NO CTE)","ACTIVOS NO CORRIENTES","Otros Activos",120826.92,"Anexo 14","[A 14]: Otros Activos"]
["164901 - DEPOSITOS EN GARANTIA","ACTIVOS CORRIENTES","Otras Cuentas por Cobrar (neto)",145629.66,"Anexo 04","[A 04]: Otras Cuentas por Cobrar (neto)"]
["164902 - DEPOSITOS EN GARANTIA M.E.","ACTIVOS CORRIENTES","Otras Cuentas por Cobrar (neto)",178172.49,"Anexo 04","[A 04]: Otras Cuentas por Cobrar (neto)"]
["168901 - ENTREGAS A RENDIR CUENTA TERCEROS","ACTIVOS CORRIENTES","Gastos Contratados por Anticipado",14232.57,"Anexo 05","[A 05]: Gastos Contratados por Anticipado"]
["168902 - ENTREGAS A RENDIR CUENTA TERCEROS ME","ACTIVOS CORRIENTES","Gastos Contratados por Anticipado",64736.81,"Anexo 05","[A 05]: Gastos Contratados por Anticipado"]
["168903 - SUBSIDIOS POR COBRAR","ACTIVOS CORRIENTES","Otras Cuentas por Cobrar (neto)",9007.67,"Anexo 04","[A 04]: Otras Cuentas por Cobrar (neto)"]
["171231 - COB. DIV. PREST. S/GARANTIA ASOCIADA MN","ACTIVOS CORRIENTES","Otras Cuentas por Cobrar a Partes Relacionadas (neto)",171977.57,"Anexo 03","[A 03]: Otras Cuentas por Cobrar a Partes Relacionadas (neto)"]
["171233 - COB. DIV. PREST. S/GARANTIA ASOCIADA MN (NO CTE)","ACTIVOS NO CORRIENTES","Otras Cuentas por Cobrar a Partes Relacionadas",36920.99,"Anexo 09","[A 09]: Otras Cuentas por Cobrar a Partes Relacionadas"]
["171234 - COB. DIV. PREST. S/GARANTIA ASOCIADA ME (NO CTE)","ACTIVOS NO CORRIENTES","Otras Cuentas por Cobrar a Partes Relacionadas",198869.21,"Anexo 09","[A 09]: Otras Cuentas por Cobrar a Partes Relacionadas"]
["171235 - COB. DIV. PREST. S/GARANTIA ASOCIADA ARBITRAJE ME","ACTIVOS NO CORRIENTES","Otras Cuentas por Cobrar a Partes Relacionadas",120795.97,"Anexo 09","[A 09]: Otras Cuentas por Cobrar a Partes Relacionadas"]
["171236 - COB. DIV. PREST. S/GARANTIA ASOCIADA ARBITRAJE MN","ACTIVOS NO CORRIENTES","Otras Cuentas por Cobrar a Partes Relacionadas",78940.53,"Anexo 09","[A 09]: Otras Cuentas por Cobrar a Partes Relacionadas"]
["171237 - COB. DIV. PREST. S/GARANTIA ASOCIADA INCOBRABLE","ACTIVOS NO CORRIENTES","Otras Cuentas por Cobrar a Partes Relacionadas",79871.65,"Anexo 09","[A 09]: Otras Cuentas por Cobrar a Partes Relacionadas"]
["171242 - CBZA. DIVERSA PRESTAMOS S/GARANTIA SUCURS.RELAC ME","ACTIVOS CORRIENTES","Otras Cuentas por Cobrar a Partes Relacionadas (neto)",319836.02,"Anexo 03","[A 03]: Otras Cuentas por Cobrar a Partes Relacionadas (neto)"]
["173142 - GASTOS, COMISIONES POR COBRAR A NICARAGUA","ACTIVOS CORRIENTES","Otras Cuentas por Cobrar a Partes Relacionadas (neto)",40547.06,"Anexo 03","[A 03]: Otras Cuentas por Cobrar a Partes Relacionadas (neto)"]
["173310 - DIVIDENDOS ACCIONISTAS MM","ACTIVOS CORRIENTES","Otras Cuentas por Cobrar a Partes Relacionadas (neto)",2270967.26,"Anexo 03","[A 03]: Otras Cuentas por Cobrar a Partes Relacionadas (neto)"]
["173321 - DIVIDENDOS POR COBRAR SUBSIDIA","ACTIVOS CORRIENTES","Otras Cuentas por Cobrar a Partes Relacionadas (neto)",1086140,"Anexo 03","[A 03]: Otras Cuentas por Cobrar a Partes Relacionadas (neto)"]
["173331 - DIVIDENDOS CONSORCIOS","ACTIVOS CORRIENTES","Otras Cuentas por Cobrar a Partes Relacionadas (neto)",582115.63,"Anexo 03","[A 03]: Otras Cuentas por Cobrar a Partes Relacionadas (neto)"]
["173341 - INTERESES, REGALIAS, DIVIDENDOS OTROS","ACTIVOS CORRIENTES","Otras Cuentas por Cobrar a Partes Relacionadas (neto)",54063.6,"Anexo 03","[A 03]: Otras Cuentas por Cobrar a Partes Relacionadas (neto)"]
["181101 - COSTOS FINANCIEROS M.N.","ACTIVOS CORRIENTES","Gastos Contratados por Anticipado",3719.81,"Anexo 05","[A 05]: Gastos Contratados por Anticipado"]
["182101 - SEGUROS (MN)","ACTIVOS CORRIENTES","Gastos Contratados por Anticipado",450.05,"Anexo 05","[A 05]: Gastos Contratados por Anticipado"]
["182102 - SEGUROS (ME)","ACTIVOS CORRIENTES","Gastos Contratados por Anticipado",3237.72,"Anexo 05","[A 05]: Gastos Contratados por Anticipado"]
["189111 - SUB CONTRATOS DE CONSULTORIA M.N.","ACTIVOS CORRIENTES","Gastos Contratados por Anticipado",18625,"Anexo 05","[A 05]: Gastos Contratados por Anticipado"]
["302731 - PARTICIPACION EN CONSORCIOS - CARTAS FIANZA MN","ACTIVOS NO CORRIENTES","Inversiones al Método de Participación",242580.01,"Anexo 07","[A 07]: Inversiones al Método de Participación"]
["302732 - PARTICIPACION EN CONSORCIOS - CARTAS FIANZA ME","ACTIVOS NO CORRIENTES","Inversiones al Método de Participación",952593.77,"Anexo 07","[A 07]: Inversiones al Método de Participación"]
["322411 - EQUIPOS DE TRANSPORTE","ACTIVOS NO CORRIENTES","Inmuebles, Maquinaria y Equipo (neto)",64661.63,"Anexo 11","[A 11]: Inmuebles, Maquinaria y Equipo (neto)"]
["332111 - COSTO DE ADQUISICION O CONSTRUCCION","ACTIVOS NO CORRIENTES","Inmuebles, Maquinaria y Equipo (neto)",192793.63,"Anexo 11","[A 11]: Inmuebles, Maquinaria y Equipo (neto)"]
["333111 - COSTO DE ADQUISICION MAQUINARIA Y EQUIPO","ACTIVOS NO CORRIENTES","Inmuebles, Maquinaria y Equipo (neto)",101262.04,"Anexo 11","[A 11]: Inmuebles, Maquinaria y Equipo (neto)"]
["334111 - COSTO VEHICULOS MOTORIZADOS","ACTIVOS NO CORRIENTES","Inmuebles, Maquinaria y Equipo (neto)",334438.07,"Anexo 11","[A 11]: Inmuebles, Maquinaria y Equipo (neto)"]
["335111 - COSTO MUEBLES ENSERES","ACTIVOS NO CORRIENTES","Inmuebles, Maquinaria y Equipo (neto)",397785.65,"Anexo 11","[A 11]: Inmuebles, Maquinaria y Equipo (neto)"]
["336101 - EQUIPOS DIVERSOS","ACTIVOS NO CORRIENTES","Inmuebles, Maquinaria y Equipo (neto)",831752.27,"Anexo 11","[A 11]: Inmuebles, Maquinaria y Equipo (neto)"]
["336111 - COSTO EQUIPO COMPUTO","ACTIVOS NO CORRIENTES","Inmuebles, Maquinaria y Equipo (neto)",918184.25,"Anexo 11","[A 11]: Inmuebles, Maquinaria y Equipo (neto)"]
["336211 - COSTO EQUIPO DE COMUNICACION","ACTIVOS NO CORRIENTES","Inmuebles, Maquinaria y Equipo (neto)",345686.78,"Anexo 11","[A 11]: Inmuebles, Maquinaria y Equipo (neto)"]
["341211 - LICENCIAS DE PROGRAMAS","ACTIVOS NO CORRIENTES","Activos Intangibles (neto)",385162.91,"Anexo 12","[A 12]: Activos Intangibles (neto)"]
["371201 - IMPUESTO A LA RENTA DIFERIDO","ACTIVOS NO CORRIENTES","Activos por Impuesto a la Renta y Participaciones Diferidos",208151.04,"Anexo 13","[A 13]: Activos por Impuesto a la Renta y Participaciones Diferidos"]
["373101 - INTERESES FRACIONAMIENTO ART. 36","ACTIVOS CORRIENTES","Otros Activos",886.98,"Anexo 06","[A 06]: Otros Activos"]
["391241 - DEPREC EQUIPO DE TRANSP LEASING","ACTIVOS NO CORRIENTES","Inmuebles, Maquinaria y Equipo (neto)",-61428.42,"Anexo 11","[A 11]: Inmuebles, Maquinaria y Equipo (neto)"]
["391311 - DEPRECIACION EDIFICACIONES COSTO","ACTIVOS NO CORRIENTES","Inmuebles, Maquinaria y Equipo (neto)",-139252.61,"Anexo 11","[A 11]: Inmuebles, Maquinaria y Equipo (neto)"]
["391321 - DEPRECIACION MAQUINARIAS Y EQUIPOS EXPLOTACION - C","ACTIVOS NO CORRIENTES","Inmuebles, Maquinaria y Equipo (neto)",-102824.98,"Anexo 11","[A 11]: Inmuebles, Maquinaria y Equipo (neto)"]
["391331 - DEPRECIACION EQUIPO DE TRANSPORTE - COSTO","ACTIVOS NO CORRIENTES","Inmuebles, Maquinaria y Equipo (neto)",-380728.36,"Anexo 11","[A 11]: Inmuebles, Maquinaria y Equipo (neto)"]
["391341 - DEPRECIACION MUEBLES Y ENSERES - COSTO","ACTIVOS NO CORRIENTES","Inmuebles, Maquinaria y Equipo (neto)",-300636.68,"Anexo 11","[A 11]: Inmuebles, Maquinaria y Equipo (neto)"]
["391351 - DEPRECIACION EQUIPOS DIVERSOS - COSTO","ACTIVOS NO CORRIENTES","Inmuebles, Maquinaria y Equipo (neto)",-765867.32,"Anexo 11","[A 11]: Inmuebles, Maquinaria y Equipo (neto)"]
["391352 - DEPRECIACION DE EQUIPO DE COMPUTO","ACTIVOS NO CORRIENTES","Inmuebles, Maquinaria y Equipo (neto)",-907391.32,"Anexo 11","[A 11]: Inmuebles, Maquinaria y Equipo (neto)"]
["391353 - DEPRECIACION DE EQUIPO DE COMUNICACIËN","ACTIVOS NO CORRIENTES","Inmuebles, Maquinaria y Equipo (neto)",-355918.07,"Anexo 11","[A 11]: Inmuebles, Maquinaria y Equipo (neto)"]
["392111 - AMORTIZACION DE LICENCIAS","ACTIVOS NO CORRIENTES","Activos Intangibles (neto)",-282226.92,"Anexo 12","[A 12]: Activos Intangibles (neto)"]
["401101 - IGV POR PAGAR","PASIVOS CORRIENTES","Otras Cuentas por Pagar",54018.49,"Anexo 18","[A 18]: Otras Cuentas por Pagar"]
["401111 - IGV - CUENTA PROPIA","PASIVOS CORRIENTES","Otras Cuentas por Pagar",-35965.39,"Anexo 18","[A 18]: Otras Cuentas por Pagar"]
["401701 - RENTA 3RA CAT POR PAGAR (CTE)","PASIVOS CORRIENTES","Otras Cuentas por Pagar",-66346.19,"Anexo 18","[A 18]: Otras Cuentas por Pagar"]
["401721 - RENTA DE CUARTA CATEGORIA","PASIVOS CORRIENTES","Otras Cuentas por Pagar",-2529,"Anexo 18","[A 18]: Otras Cuentas por Pagar"]
["401722 - RENTA 4TA CAT POR PAGAR (CTE)","PASIVOS CORRIENTES","Otras Cuentas por Pagar",-5128.79,"Anexo 18","[A 18]: Otras Cuentas por Pagar"]
["401732 - RENTA 5TA CAT POR PAGAR (CTE)","PASIVOS CORRIENTES","Otras Cuentas por Pagar",669.19,"Anexo 18","[A 18]: Otras Cuentas por Pagar"]
["403111 - ESSALUD POR PAGAR (CTE)","PASIVOS CORRIENTES","Otras Cuentas por Pagar",-6843.17,"Anexo 18","[A 18]: Otras Cuentas por Pagar"]
["403113 - ESSALUD VIDA POR PAGAR (CTE)","PASIVOS CORRIENTES","Otras Cuentas por Pagar",-49.94,"Anexo 18","[A 18]: Otras Cuentas por Pagar"]
["407111 - AFP POR PAGAR (CTE)","PASIVOS CORRIENTES","Otras Cuentas por Pagar",-11493.01,"Anexo 18","[A 18]: Otras Cuentas por Pagar"]
["411101 - SUELDOS","PASIVOS CORRIENTES","Otras Cuentas por Pagar",-704243.83,"Anexo 18","[A 18]: Otras Cuentas por Pagar"]
["411104 - FONDO DE TRABAJADORES","PASIVOS CORRIENTES","Otras Cuentas por Pagar",-17002.08,"Anexo 18","[A 18]: Otras Cuentas por Pagar"]
["411401 - GRATIFICACIONES EMPLEADOS","PASIVOS CORRIENTES","Otras Cuentas por Pagar",-54425.84,"Anexo 18","[A 18]: Otras Cuentas por Pagar"]
["411501 - VACACIONES EMPLEADOS","PASIVOS CORRIENTES","Otras Cuentas por Pagar",-103184.06,"Anexo 18","[A 18]: Otras Cuentas por Pagar"]
["413101 - PARTICIPACIONES DE EMPLEADOS","PASIVOS CORRIENTES","Otras Cuentas por Pagar",-11847.53,"Anexo 18","[A 18]: Otras Cuentas por Pagar"]
["415101 - C.T.S. EMPLEADOS","PASIVOS CORRIENTES","Otras Cuentas por Pagar",-59735.26,"Anexo 18","[A 18]: Otras Cuentas por Pagar"]
["419102 - LIQUIDACIONES POR PAGAR (CTE)","PASIVOS CORRIENTES","Otras Cuentas por Pagar",-174773.23,"Anexo 18","[A 18]: Otras Cuentas por Pagar"]
["421101 - FACTURAS NO EMITIDAS POR PAGAR MN","PASIVOS CORRIENTES","Cuentas por Pagar Comerciales",-270802.15,"Anexo 16","[A 16]: Cuentas por Pagar Comerciales"]
["421102 - FACTURAS NO EMITIDAS POR PAGAR ME","PASIVOS CORRIENTES","Cuentas por Pagar Comerciales",-609369.55,"Anexo 16","[A 16]: Cuentas por Pagar Comerciales"]
["421103 - FACTURAS NO EMITIDAS POR PAGAR","PASIVOS CORRIENTES","Cuentas por Pagar Comerciales",-424.14,"Anexo 16","[A 16]: Cuentas por Pagar Comerciales"]
["421201 - FACTURAS EMITIDAS POR PAGAR M.N. TERCEROS","PASIVOS CORRIENTES","Cuentas por Pagar Comerciales",-296986.15,"Anexo 16","[A 16]: Cuentas por Pagar Comerciales"]
["421202 - FACTURAS EMITIDAS POR PAGAR M.E. TERCEROS","PASIVOS CORRIENTES","Cuentas por Pagar Comerciales",-295576.66,"Anexo 16","[A 16]: Cuentas por Pagar Comerciales"]
["421203 - DETRACCIONES POR PAGAR MN","PASIVOS CORRIENTES","Cuentas por Pagar Comerciales",0,"Anexo 16","[A 16]: Cuentas por Pagar Comerciales"]
["421221 - FACTURAS EMITIDAS POR PAGAR MN (NO CTE)","PASIVOS NO CORRIENTES","Cuentas por Pagar Comerciales",-475.83,"Anexo 19","[A 19]: Cuentas por Pagar Comerciales"]
["422101 - ANTICIPOS A PROVEEDORES M.N.","ACTIVOS CORRIENTES","Gastos Contratados por Anticipado",8382.9,"Anexo 05","[A 05]: Gastos Contratados por Anticipado"]
["422102 - ANTICIPOS A PROVEEDORES M.E.","ACTIVOS CORRIENTES","Gastos Contratados por Anticipado",15.24,"Anexo 05","[A 05]: Gastos Contratados por Anticipado"]
["424101 - HONORARIOS POR PAGAR M.N.","PASIVOS CORRIENTES","Cuentas por Pagar Comerciales",-206740.17,"Anexo 16","[A 16]: Cuentas por Pagar Comerciales"]
["424102 - HONORARIOS POR PAGAR M.E.","PASIVOS CORRIENTES","Cuentas por Pagar Comerciales",-2255.08,"Anexo 16","[A 16]: Cuentas por Pagar Comerciales"]
["441111 - PRESTAMOS ACCIONISTAS CORTO PLAZO M.N.","PASIVOS CORRIENTES","Otras Cuentas por Pagar a Partes Relacionadas",-1200,"Anexo 17","[A 17]: Otras Cuentas por Pagar a Partes Relacionadas"]
["441121 - PRESTAMOS ACCIONISTAS LARGO PLAZO M.N.","PASIVOS NO CORRIENTES","Otras Cuentas por Pagar a Partes Relacionadas",-74110.8,"Anexo 20","[A 20]: Otras Cuentas por Pagar a Partes Relacionadas"]
["454401 - PAGARES MN","PASIVOS CORRIENTES","Obligaciones Financieras",-77314.5,"Anexo 15","[A 15]: Obligaciones Financieras"]
["454402 - PAGARES ME","PASIVOS CORRIENTES","Obligaciones Financieras",-4405.19,"Anexo 15","[A 15]: Obligaciones Financieras"]
["461101 - RECLAMACIONES DE TERCEROS MN (CTE)","PASIVOS CORRIENTES","Otras Cuentas por Pagar",-14917.32,"Anexo 18","[A 18]: Otras Cuentas por Pagar"]
["461102 - RECLAMACIONES DE TERCEROS ME (CTE)","PASIVOS CORRIENTES","Otras Cuentas por Pagar",-3055.6,"Anexo 18","[A 18]: Otras Cuentas por Pagar"]
["461121 - RECLAMACIONES DE TERCEROS MN (NO CTE)","PASIVOS NO CORRIENTES","Otras Cuentas por Pagar",-30899.41,"Anexo 22","[A 22]: Otras Cuentas por Pagar"]
["469902 - CUENTAS POR PAGAR A PERSONAS (REEMBOLSOS)","PASIVOS CORRIENTES","Otras Cuentas por Pagar",-18107.39,"Anexo 18","[A 18]: Otras Cuentas por Pagar"]
["469903 - CUENTAS POR PAGAR A TERCEROS","PASIVOS CORRIENTES","Otras Cuentas por Pagar",-915.1,"Anexo 18","[A 18]: Otras Cuentas por Pagar"]
["469904 - OTRAS CUENTAS POR PAGAR (NO CTE)","PASIVOS NO CORRIENTES","Otras Cuentas por Pagar",-1678.4,"Anexo 22","[A 22]: Otras Cuentas por Pagar"]
["471201 - PRESTAMOS RECIBIDOS M.N.","PASIVOS NO CORRIENTES","Otras Cuentas por Pagar a Partes Relacionadas",-26990,"Anexo 20","[A 20]: Otras Cuentas por Pagar a Partes Relacionadas"]
["471202 - PRESTAMOS RECIBIDOS M.E.","PASIVOS NO CORRIENTES","Otras Cuentas por Pagar a Partes Relacionadas",-752084.3,"Anexo 20","[A 20]: Otras Cuentas por Pagar a Partes Relacionadas"]
["471203 - PRESTAMOS RECIBIDOS ARBITRAJE MN","PASIVOS NO CORRIENTES","Otras Cuentas por Pagar a Partes Relacionadas",-59830.12,"Anexo 20","[A 20]: Otras Cuentas por Pagar a Partes Relacionadas"]
["491201 - IMPUESTO A LA RENTA DIFERIDO -","PASIVOS NO CORRIENTES","Pasivos por Impuesto a la Renta y Participaciones Diferidos",-74072.69,"Anexo 21","[A 21]: Pasivos por Impuesto a la Renta y Participaciones Diferidos"]
["501101 - ACCIONES","PATRIMONIO NETO","Capital",-4757986,"Anexo 23","[A 23]: Capital"]
["582101 - RESERVA LEGAL","PATRIMONIO NETO","Reservas Legales",-232657,"Anexo 24","[A 24]: Reservas Legales"]
["591101 - UTILIDADES ACUMULADAS","PATRIMONIO NETO","Resultados Acumulados",-1651747.1,"Anexo 25","[A 25]: Resultados Acumulados"]
["591102 - UTILIDADES ACUMULADAS-INAFECTA","PATRIMONIO NETO","Resultados Acumulados",60.95,"Anexo 25","[A 25]: Resultados Acumulados"]
["591201 - INGRESOS DE AÑOS ANTERIORES","PATRIMONIO NETO","Resultados Acumulados",-21982.67,"Anexo 25","[A 25]: Resultados Acumulados"]
["591202 - GASTOS DE AÑOS ANTERIORES","PATRIMONIO NETO","Resultados Acumulados",2184.42,"Anexo 25","[A 25]: Resultados Acumulados"]
["592101 - PERDIDAS ACUMULADAS","PATRIMONIO NETO","Resultados Acumulados",183960.44,"Anexo 25","[A 25]: Resultados Acumulados"]
["891101 - RESULTADO DEL EJERCICIO","PATRIMONIO NETO","Resultado del Ejercicio",629128.8800000001,"Anexo 26","[A 26]: Resultado del Ejercicio"]

{"sheet":"SITUACION","index":1,"n_rows":32,"n_cols":8,"rows_kept":32}
[null,"Estado de situación financiera • anexos"]
[null,"MOS Expert CPC Martín Cruz • +51 998 401 784 | Excel No Convencional"]
[]
[]
[null,{"$f":"IF(AND(LEFT(C5,5)<>\"Total\",ISNUMBER(D5)),HYPERLINK(\"#\"&\"'Anexo \"&MID(C5,4,2)&\"'!A1\",\"►\"),\"\")","v":""},"ACTIVOS",null,null,{"$f":"IF(AND(LEFT(G5,5)<>\"Total\",ISNUMBER(H5)),HYPERLINK(\"#\"&\"'Anexo \"&MID(G5,4,2)&\"'!A1\",\"►\"),\"\")","v":""},"PASIVOS Y PATRIMONIO NETO"]
[null,"",{"$nulls":3},""]
[null,"",null,"S/",null,"",null,"S/"]
[null,"","ACTIVOS CORRIENTES",null,null,"","PASIVOS CORRIENTES"]
[null,"►","[A 01]: Efectivo y Equivalentes de Efectivo",{"v":339642.86,"d":"339,642.86"},null,{"$f":"IF(AND(LEFT(G9,5)<>\"Total\",ISNUMBER(H9)),HYPERLINK(\"#\"&\"'Anexo \"&MID(G9,4,2)&\"'!A1\",\"►\"),\"\")","v":"►"},"[A 15]: Obligaciones Financieras",{"v":-81719.69,"d":"81,719.69 "}]
[null,"►","[A 02]: Cuentas por Cobrar Comerciales (neto)",{"v":1599921.8399999999,"d":"1,599,921.84"},null,"►","[A 16]: Cuentas por Pagar Comerciales",{"v":-2146935.15,"d":"2,146,935.15 "}]
[null,"►","[A 03]: Otras Cuentas por Cobrar a Partes Relacionadas (neto)",{"v":4530894.74,"d":"4,530,894.74"},null,"►","[A 17]: Otras Cuentas por Pagar a Partes Relacionadas",{"v":-1200,"d":"1,200.00 "}]
[null,"►","[A 04]: Otras Cuentas por Cobrar (neto)",{"v":340091.79,"d":"340,091.79"},null,"►","[A 18]: Otras Cuentas por Pagar",{"v":-1235875.0499999998,"d":"1,235,875.05 "}]
[null,"►","[A 05]: Gastos Contratados por Anticipado",{"v":153261.88999999998,"d":"153,261.89"},null,"","TOTAL PASIVOS CORRIENTES",{"v":-3465729.8899999997,"d":"3,465,729.89 "}]
[null,"►","[A 06]: Otros Activos",{"v":207369.98,"d":"207,369.98"},null,""]
[null,"","TOTAL ACTIVOS CORRIENTES",{"v":7171183.1,"d":"7,171,183.10"},null,"",null,"S/"]
[null,"",{"$nulls":3},"","PASIVOS NO CORRIENTES"]
[null,"",null,"S/",null,"►","[A 19]: Cuentas por Pagar Comerciales",{"v":-2726.34,"d":"2,726.34 "}]
[null,"","ACTIVOS NO CORRIENTES",null,null,"►","[A 20]: Otras Cuentas por Pagar a Partes Relacionadas",{"v":-913015.2200000001,"d":"913,015.22 "}]
[null,"►","[A 07]: Inversiones al Método de Participación",{"v":1195173.78,"d":"1,195,173.78"},null,"►","[A 21]: Pasivos por Impuesto a la Renta y Participaciones Diferidos",{"v":-74072.69,"d":"74,072.69 "}]
[null,"►","[A 08]: Cuentas por Cobrar Comerciales",{"v":70981.39,"d":"70,981.39"},null,"►","[A 22]: Otras Cuentas por Pagar",{"v":-32577.81,"d":"32,577.81 "}]
[null,"►","[A 09]: Otras Cuentas por Cobrar a Partes Relacionadas",{"v":1002911.94,"d":"1,002,911.94"},null,"","TOTAL PASIVOS NO CORRIENTES",{"v":-1022392.06,"d":"1,022,392.06 "}]
[null,"►","[A 10]: Otras Cuentas por Cobrar",{"v":226554.31,"d":"226,554.31"},null,""]
[null,"►","[A 11]: Inmuebles, Maquinaria y Equipo (neto)",{"v":172516.56000000052,"d":"172,516.56"},null,"",null,"S/"]
[null,"►","[A 12]: Activos Intangibles (neto)",{"v":102935.98999999999,"d":"102,935.99"},null,"","PATRIMONIO NETO"]
[null,"►","[A 13]: Activos por Impuesto a la Renta y Participaciones Diferidos",{"v":208151.04,"d":"208,151.04"},null,"►","[A 23]: Capital",{"v":-4757986,"d":"4,757,986.00 "}]
[null,"►","[A 14]: Otros Activos",{"v":186751.91999999998,"d":"186,751.92"},null,"►","[A 24]: Reservas Legales",{"v":-232657,"d":"232,657.00 "}]
[null,"","TOTAL ACTIVOS NO CORRIENTES",{"v":3165976.9300000006,"d":"3,165,976.93"},null,"►","[A 25]: Resultados Acumulados",{"v":-1487523.96,"d":"1,487,523.96 "}]
[null,"",{"$nulls":3},"►","[A 26]: Resultado del Ejercicio",{"v":629128.8800000001,"d":"629,128.88"}]
[null,"",{"$nulls":3},"","TOTAL PATRIMONIO NETO",{"v":-5849038.08,"d":"5,849,038.08 "}]
[null,"",{"$nulls":3},""]
[null,"",{"$nulls":3},""]
[null,"","TOTAL ACTIVOS",{"$f":"SUM(GETPIVOTDATA(\"Saldo\",$C$7),\nGETPIVOTDATA(\"Saldo\",$C$17))","v":{"v":10337160.030000001,"d":"10,337,160"}},null,"","TOTAL PASIVOS Y PATRIMONIO",{"$f":"SUM(GETPIVOTDATA(\"Saldo\",$G$7),GETPIVOTDATA(\"Saldo\",$G$15),GETPIVOTDATA(\"Saldo\",$G$23))","v":{"v":-10337160.03,"d":"10,337,160 "}}]

{"sheet":"Anexo 01","index":2,"n_rows":30,"n_cols":4,"rows_kept":30}
[null,"◄ Estado de situación financiera • anexos"]
[null,"MOS Expert CPC Martín Cruz • +51 998 401 784 | Excel No Convencional"]
[]
[]
[null,null,"Detalle del Estado de Situación:","Anexo 01"]
[]
[{"$nulls":3},"S/"]
[null,null,"Efectivo y Equivalentes de Efectivo"]
[null,null,"102101 - FONDOS FIJOS M.N",{"v":3000,"d":"3,000.00"}]
[null,null,"104111 - BBVA M.N. CTA CTE 147-0200001870",245.61]
[null,null,"104112 - BBVA M.E. CTA CTE 147-0300031849",3.47]
[null,null,"104121 - SCOTIABANK M.N. CTA CTE 000-2872563",{"v":117,"d":"117.00"}]
[null,null,"104122 - SCOTIANBAK M.E.CTA CTE 000-0235684",87.71]
[null,null,"104131 - INTERBANK M.N. CTA CTE 041-3000369715",83.47]
[null,null,"104132 - INTERBANK M.E. CTA CTE 041-3000741258",476.22]
[null,null,"104141 - CTA DETRACCION 0000-34015",{"v":2060.22,"d":"2,060.22"}]
[null,null,"104151 - BCO. CREDITO M.N. 193-1241637530-12",{"v":-4520.36,"d":"-4,520.36 "}]
[null,null,"104152 - BCO DE CREDITO M.E. 193-1634125879-17",{"v":5998.92,"d":"5,998.92"}]
[null,null,"104161 - BCO DE COMERCIO M.N. 110-01-0452163",{"v":24.1,"d":"24.10"}]
[null,null,"104162 - BCO DE COMERCIO M.E. 110-02-0842368",73.03]
[null,null,"104171 - BIF M.N. 7000175623",23.41]
[null,null,"104172 - BIF M.E. 7000174963",42.21]
[null,null,"104181 - BCO FINANCIERO M.N. 050-000541236987",12.47]
[null,null,"104182 - BCO FINANCIERO M.E. 050-000541285749",{"v":-143.21,"d":"-143.21 "}]
[null,null,"105012 - CERTIFICADOS BANCARIOS ME BCP 193-63251447-1-8",{"v":2086.85,"d":"2,086.85"}]
[null,null,"107101 - FONDO SUJETOS A RESTRICCION MN",993.72]
[null,null,"107113 - FONDO SUJETO A RESTRIC. ME BBVA 0011-0385-0450",{"v":3377.69,"d":"3,377.69"}]
[null,null,"107114 - FONDO SUJETO A RESTRIC. ME BCP 193-63968542-1-7",{"v":2510.73,"d":"2,510.73"}]
[null,null,"107115 - FONDO SUJETO A RESTRIC. ME INT",{"v":323089.6,"d":"323,089.60"}]
[null,null,"Total Efectivo y Equivalentes de Efectivo",{"v":339642.86,"d":"339,642.86"}]

{"sheet":"Anexo 02","index":3,"n_rows":13,"n_cols":4,"rows_kept":13}
[null,"◄ Estado de situación financiera • anexos"]
[null,"MOS Expert CPC Martín Cruz • +51 998 401 784 | Excel No Convencional"]
[]
[]
[null,null,"Detalle del Estado de Situación:","Anexo 02"]
[]
[{"$nulls":3},"S/"]
[null,null,"Cuentas por Cobrar Comerciales (neto)"]
[null,null,"121101 - FACTURAS POR COBRAR NO EMITIDAS TERCEROS MN",{"v":468573.17,"d":"468,573.17"}]
[null,null,"121102 - FACTURAS POR COBRAR NO EMITIDAS TERCEROS ME",{"v":770378.76,"d":"770,378.76"}]
[null,null,"121201 - FACTURAS POR COBRAR EMITIDAS CARTERA TERCEROS MN",{"v":306995.39,"d":"306,995.39"}]
[null,null,"121202 - FACTURAS POR COBRAR EMITIDAS CARTERA TERCEROS M.E.",{"v":53974.52,"d":"53,974.52"}]
[null,null,"Total Cuentas por Cobrar Comerciales (neto)",{"v":1599921.8399999999,"d":"1,599,921.84"}]

{"sheet":"Anexo 03","index":4,"n_rows":18,"n_cols":4,"rows_kept":18}
[null,"◄ Estado de situación financiera • anexos"]
[null,"MOS Expert CPC Martín Cruz • +51 998 401 784 | Excel No Convencional"]
[]
[]
[null,null,"Detalle del Estado de Situación:","Anexo 03"]
[]
[{"$nulls":3},"S/"]
[null,null,"Otras Cuentas por Cobrar a Partes Relacionadas (neto)"]
[null,null,"131231 - FACTURAS POR COBRAR EMITIDAS ASOC.RELAC.M.N.",{"v":531,"d":"531.00"}]
[null,null,"131232 - FACTURAS POR COBRAR EMITIDAS ASOC.RELAC.M.E.",{"v":4716.6,"d":"4,716.60"}]
[null,null,"171231 - COB. DIV. PREST. S/GARANTIA ASOCIADA MN",{"v":171977.57,"d":"171,977.57"}]
[null,null,"171242 - CBZA. DIVERSA PRESTAMOS S/GARANTIA SUCURS.RELAC ME",{"v":319836.02,"d":"319,836.02"}]
[null,null,"173142 - GASTOS, COMISIONES POR COBRAR A NICARAGUA",{"v":40547.06,"d":"40,547.06"}]
[null,null,"173310 - DIVIDENDOS ACCIONISTAS MM",{"v":2270967.26,"d":"2,270,967.26"}]
[null,null,"173321 - DIVIDENDOS POR COBRAR SUBSIDIA",{"v":1086140,"d":"1,086,140.00"}]
[null,null,"173331 - DIVIDENDOS CONSORCIOS",{"v":582115.63,"d":"582,115.63"}]
[null,null,"173341 - INTERESES, REGALIAS, DIVIDENDOS OTROS",{"v":54063.6,"d":"54,063.60"}]
[null,null,"Total Otras Cuentas por Cobrar a Partes Relacionadas (neto)",{"v":4530894.739999999,"d":"4,530,894.74"}]

{"sheet":"Anexo 04","index":5,"n_rows":17,"n_cols":4,"rows_kept":17}
[null,"◄ Estado de situación financiera • anexos"]
[null,"MOS Expert CPC Martín Cruz • +51 998 401 784 | Excel No Convencional"]
[]
[]
[null,null,"Detalle del Estado de Situación:","Anexo 04"]
[]
[{"$nulls":3},"S/"]
[null,null,"Otras Cuentas por Cobrar (neto)"]
[null,null,"141101 - PRESTAMOS DE PERSONAL EMPLEADOS M.N.",{"v":2573.83,"d":"2,573.83"}]
[null,null,"141201 - ADELANTO DE RENUMERACION MN",{"v":199.8,"d":"199.80"}]
[null,null,"161111 - COBRANZA DIVERSAS PRESTAMOS S/GARANTIA TERCEROS MN",{"v":500.9,"d":"500.90"}]
[null,null,"162301 - RECLAMACIONES A TERCEROS ME",656.38]
[null,null,"162302 - RECLAMACIONES A TERCEROS MN",{"v":3351.06,"d":"3,351.06"}]
[null,null,"164901 - DEPOSITOS EN GARANTIA",{"v":145629.66,"d":"145,629.66"}]
[null,null,"164902 - DEPOSITOS EN GARANTIA M.E.",{"v":178172.49,"d":"178,172.49"}]
[null,null,"168903 - SUBSIDIOS POR COBRAR",{"v":9007.67,"d":"9,007.67"}]
[null,null,"Total Otras Cuentas por Cobrar (neto)",{"v":340091.79,"d":"340,091.79"}]

{"sheet":"Anexo 05","index":6,"n_rows":19,"n_cols":4,"rows_kept":19}
[null,"◄ Estado de situación financiera • anexos"]
[null,"MOS Expert CPC Martín Cruz • +51 998 401 784 | Excel No Convencional"]
[]
[]
[null,null,"Detalle del Estado de Situación:","Anexo 05"]
[]
[{"$nulls":3},"S/"]
[null,null,"Gastos Contratados por Anticipado"]
[null,null,"141301 - ENTREGAS A RENDIR CUENTA DE PERSONAL M.N.",{"v":29795.95,"d":"29,795.95"}]
[null,null,"141302 - ENTREGAS A RENDIR CUENTA DE PERSONAL M.E.",{"v":10065.84,"d":"10,065.84"}]
[null,null,"168901 - ENTREGAS A RENDIR CUENTA TERCEROS",{"v":14232.57,"d":"14,232.57"}]
[null,null,"168902 - ENTREGAS A RENDIR CUENTA TERCEROS ME",{"v":64736.81,"d":"64,736.81"}]
[null,null,"181101 - COSTOS FINANCIEROS M.N.",{"v":3719.81,"d":"3,719.81"}]
[null,null,"182101 - SEGUROS (MN)",450.05]
[null,null,"182102 - SEGUROS (ME)",{"v":3237.72,"d":"3,237.72"}]
[null,null,"189111 - SUB CONTRATOS DE CONSULTORIA M.N.",{"v":18625,"d":"18,625.00"}]
[null,null,"422101 - ANTICIPOS A PROVEEDORES M.N.",{"v":8382.9,"d":"8,382.90"}]
[null,null,"422102 - ANTICIPOS A PROVEEDORES M.E.",15.24]
[null,null,"Total Gastos Contratados por Anticipado",{"v":153261.88999999998,"d":"153,261.89"}]

{"sheet":"Anexo 06","index":7,"n_rows":13,"n_cols":4,"rows_kept":13}
[null,"◄ Estado de situación financiera • anexos"]
[null,"MOS Expert CPC Martín Cruz • +51 998 401 784 | Excel No Convencional"]
[]
[]
[null,null,"Detalle del Estado de Situación:","Anexo 06"]
[]
[{"$nulls":3},"S/"]
[null,null,"Otros Activos"]
[null,null,"162402 - RENTA PAGOS A CUENTA",{"v":49401,"d":"49,401.00"}]
[null,null,"162403 - RENTA ITAN",{"v":44282,"d":"44,282.00"}]
[null,null,"162404 - CREDITO ANUAL RENTA",{"v":112800,"d":"112,800.00"}]
[null,null,"373101 - INTERESES FRACIONAMIENTO ART. 36",886.98]
[null,null,"Total Otros Activos",{"v":207369.98,"d":"207,369.98"}]

{"sheet":"Anexo 07","index":8,"n_rows":11,"n_cols":4,"rows_kept":11}
[null,"◄ Estado de situación financiera • anexos"]
[null,"MOS Expert CPC Martín Cruz • +51 998 401 784 | Excel No Convencional"]
[]
[]
[null,null,"Detalle del Estado de Situación:","Anexo 07"]
[]
[{"$nulls":3},"S/"]
[null,null,"Inversiones al Método de Participación"]
[null,null,"302731 - PARTICIPACION EN CONSORCIOS - CARTAS FIANZA MN",{"v":242580.01,"d":"242,580.01"}]
[null,null,"302732 - PARTICIPACION EN CONSORCIOS - CARTAS FIANZA ME",{"v":952593.77,"d":"952,593.77"}]
[null,null,"Total Inversiones al Método de Participación",{"v":1195173.78,"d":"1,195,173.78"}]

{"sheet":"Anexo 08","index":9,"n_rows":11,"n_cols":4,"rows_kept":11}
[null,"◄ Estado de situación financiera • anexos"]
[null,"MOS Expert CPC Martín Cruz • +51 998 401 784 | Excel No Convencional"]
[]
[]
[null,null,"Detalle del Estado de Situación:","Anexo 08"]
[]
[{"$nulls":3},"S/"]
[null,null,"Cuentas por Cobrar Comerciales"]
[null,null,"121221 - FACTURAS POR COBRAR CARTERA TERCEROS MN (NO CTE)",{"v":68882.74,"d":"68,882.74"}]
[null,null,"121222 - FACTURAS POR COBRAR CARTERA TERCEROS ME (NO CTE)",{"v":2098.65,"d":"2,098.65"}]
[null,null,"Total Cuentas por Cobrar Comerciales",{"v":70981.39,"d":"70,981.39"}]

{"sheet":"Anexo 09","index":10,"n_rows":18,"n_cols":4,"rows_kept":18}
[null,"◄ Estado de situación financiera • anexos"]
[null,"MOS Expert CPC Martín Cruz • +51 998 401 784 | Excel No Convencional"]
[]
[]
[null,null,"Detalle del Estado de Situación:","Anexo 09"]
[]
[{"$nulls":3},"S/"]
[null,null,"Otras Cuentas por Cobrar a Partes Relacionadas"]
[null,null,"131233 - FACTURAS POR COBRAR EMITIDAS ASOC.RELAC. NO CTE MN",{"v":415976.8,"d":"415,976.80"}]
[null,null,"131234 - FACTURAS POR COBRAR EMITIDAS ASOC.RELAC. NO CTE ME",{"v":13698.62,"d":"13,698.62"}]
[null,null,"131235 - FACTURAS POR COBRAR EMITIDAS ASOC.RELAC. ARBITRAJE",{"v":43088.28,"d":"43,088.28"}]
[null,null,"131237 - FACTURAS POR COBRAR EMITIDAS ASOC.RELAC.INCOBRAB",{"v":14749.89,"d":"14,749.89"}]
[null,null,"171233 - COB. DIV. PREST. S/GARANTIA ASOCIADA MN (NO CTE)",{"v":36920.99,"d":"36,920.99"}]
[null,null,"171234 - COB. DIV. PREST. S/GARANTIA ASOCIADA ME (NO CTE)",{"v":198869.21,"d":"198,869.21"}]
[null,null,"171235 - COB. DIV. PREST. S/GARANTIA ASOCIADA ARBITRAJE ME",{"v":120795.97,"d":"120,795.97"}]
[null,null,"171236 - COB. DIV. PREST. S/GARANTIA ASOCIADA ARBITRAJE MN",{"v":78940.53,"d":"78,940.53"}]
[null,null,"171237 - COB. DIV. PREST. S/GARANTIA ASOCIADA INCOBRABLE",{"v":79871.65,"d":"79,871.65"}]
[null,null,"Total Otras Cuentas por Cobrar a Partes Relacionadas",{"v":1002911.94,"d":"1,002,911.94"}]

{"sheet":"Anexo 10","index":11,"n_rows":11,"n_cols":4,"rows_kept":11}
[null,"◄ Estado de situación financiera • anexos"]
[null,"MOS Expert CPC Martín Cruz • +51 998 401 784 | Excel No Convencional"]
[]
[]
[null,null,"Detalle del Estado de Situación:","Anexo 10"]
[]
[{"$nulls":3},"S/"]
[null,null,"Otras Cuentas por Cobrar"]
[null,null,"141121 - PRESTAMOS DE PERSONAL EMPLEADOS MN (NO CTE)",{"v":149655.92,"d":"149,655.92"}]
[null,null,"161121 - COBRANZA DIVERSAS PRESTAMOS S/GARANTIA MN (NO CTE)",{"v":76898.39,"d":"76,898.39"}]
[null,null,"Total Otras Cuentas por Cobrar",{"v":226554.31,"d":"226,554.31"}]

{"sheet":"Anexo 11","index":12,"n_rows":25,"n_cols":4,"rows_kept":25}
[null,"◄ Estado de situación financiera • anexos"]
[null,"MOS Expert CPC Martín Cruz • +51 998 401 784 | Excel No Convencional"]
[]
[]
[null,null,"Detalle del Estado de Situación:","Anexo 11"]
[]
[{"$nulls":3},"S/"]
[null,null,"Inmuebles, Maquinaria y Equipo (neto)"]
[null,null,"322411 - EQUIPOS DE TRANSPORTE",{"v":64661.63,"d":"64,661.63"}]
[null,null,"332111 - COSTO DE ADQUISICION O CONSTRUCCION",{"v":192793.63,"d":"192,793.63"}]
[null,null,"333111 - COSTO DE ADQUISICION MAQUINARIA Y EQUIPO",{"v":101262.04,"d":"101,262.04"}]
[null,null,"334111 - COSTO VEHICULOS MOTORIZADOS",{"v":334438.07,"d":"334,438.07"}]
[null,null,"335111 - COSTO MUEBLES ENSERES",{"v":397785.65,"d":"397,785.65"}]
[null,null,"336101 - EQUIPOS DIVERSOS",{"v":831752.27,"d":"831,752.27"}]
[null,null,"336111 - COSTO EQUIPO COMPUTO",{"v":918184.25,"d":"918,184.25"}]
[null,null,"336211 - COSTO EQUIPO DE COMUNICACION",{"v":345686.78,"d":"345,686.78"}]
[null,null,"391241 - DEPREC EQUIPO DE TRANSP LEASING",{"v":-61428.42,"d":"-61,428.42 "}]
[null,null,"391311 - DEPRECIACION EDIFICACIONES COSTO",{"v":-139252.61,"d":"-139,252.61 "}]
[null,null,"391321 - DEPRECIACION MAQUINARIAS Y EQUIPOS EXPLOTACION - C",{"v":-102824.98,"d":"-102,824.98 "}]
[null,null,"391331 - DEPRECIACION EQUIPO DE TRANSPORTE - COSTO",{"v":-380728.36,"d":"-380,728.36 "}]
[null,null,"391341 - DEPRECIACION MUEBLES Y ENSERES - COSTO",{"v":-300636.68,"d":"-300,636.68 "}]
[null,null,"391351 - DEPRECIACION EQUIPOS DIVERSOS - COSTO",{"v":-765867.32,"d":"-765,867.32 "}]
[null,null,"391352 - DEPRECIACION DE EQUIPO DE COMPUTO",{"v":-907391.32,"d":"-907,391.32 "}]
[null,null,"391353 - DEPRECIACION DE EQUIPO DE COMUNICACIËN",{"v":-355918.07,"d":"-355,918.07 "}]
[null,null,"Total Inmuebles, Maquinaria y Equipo (neto)",{"v":172516.5600000007,"d":"172,516.56"}]

{"sheet":"Anexo 12","index":13,"n_rows":11,"n_cols":4,"rows_kept":11}
[null,"◄ Estado de situación financiera • anexos"]
[null,"MOS Expert CPC Martín Cruz • +51 998 401 784 | Excel No Convencional"]
[]
[]
[null,null,"Detalle del Estado de Situación:","Anexo 12"]
[]
[{"$nulls":3},"S/"]
[null,null,"Activos Intangibles (neto)"]
[null,null,"341211 - LICENCIAS DE PROGRAMAS",{"v":385162.91,"d":"385,162.91"}]
[null,null,"392111 - AMORTIZACION DE LICENCIAS",{"v":-282226.92,"d":"-282,226.92 "}]
[null,null,"Total Activos Intangibles (neto)",{"v":102935.98999999999,"d":"102,935.99"}]

{"sheet":"Anexo 13","index":14,"n_rows":10,"n_cols":4,"rows_kept":10}
[null,"◄ Estado de situación financiera • anexos"]
[null,"MOS Expert CPC Martín Cruz • +51 998 401 784 | Excel No Convencional"]
[]
[]
[null,null,"Detalle del Estado de Situación:","Anexo 13"]
[]
[{"$nulls":3},"S/"]
[null,null,"Activos por Impuesto a la Renta y Participaciones Diferidos"]
[null,null,"371201 - IMPUESTO A LA RENTA DIFERIDO",{"v":208151.04,"d":"208,151.04"}]
[null,null,"Total Activos por Impuesto a la Renta y Participaciones Diferidos",{"v":208151.04,"d":"208,151.04"}]

{"sheet":"Anexo 14","index":15,"n_rows":11,"n_cols":4,"rows_kept":11}
[null,"◄ Estado de situación financiera • anexos"]
[null,"MOS Expert CPC Martín Cruz • +51 998 401 784 | Excel No Convencional"]
[]
[]
[null,null,"Detalle del Estado de Situación:","Anexo 14"]
[]
[{"$nulls":3},"S/"]
[null,null,"Otros Activos"]
[null,null,"162423 - RENTA ITAN (NO CTE)",{"v":65925,"d":"65,925.00"}]
[null,null,"162425 - CREDITO IGV (NO CTE)",{"v":120826.92,"d":"120,826.92"}]
[null,null,"Total Otros Activos",{"v":186751.91999999998,"d":"186,751.92"}]

{"sheet":"Anexo 15","index":16,"n_rows":11,"n_cols":4,"rows_kept":11}
[null,"◄ Estado de situación financiera • anexos"]
[null,"MOS Expert CPC Martín Cruz • +51 998 401 784 | Excel No Convencional"]
[]
[]
[null,null,"Detalle del Estado de Situación:","Anexo 15"]
[]
[{"$nulls":3},"S/"]
[null,null,"Obligaciones Financieras"]
[null,null,"454401 - PAGARES MN",{"v":-77314.5,"d":"-77,314.50 "}]
[null,null,"454402 - PAGARES ME",{"v":-4405.19,"d":"-4,405.19 "}]
[null,null,"Total Obligaciones Financieras",{"v":-81719.69,"d":"-81,719.69 "}]

{"sheet":"Anexo 16","index":17,"n_rows":18,"n_cols":4,"rows_kept":18}
[null,"◄ Estado de situación financiera • anexos"]
[null,"MOS Expert CPC Martín Cruz • +51 998 401 784 | Excel No Convencional"]
[]
[]
[null,null,"Detalle del Estado de Situación:","Anexo 16"]
[]
[{"$nulls":3},"S/"]
[null,null,"Cuentas por Pagar Comerciales"]
[null,null,"122101 - ANTICIPOS DE CLIENTES TERCEROS M.N.",{"v":-464781.25,"d":"-464,781.25 "}]
[null,null,"421101 - FACTURAS NO EMITIDAS POR PAGAR MN",{"v":-270802.15,"d":"-270,802.15 "}]
[null,null,"421102 - FACTURAS NO EMITIDAS POR PAGAR ME",{"v":-609369.55,"d":"-609,369.55 "}]
[null,null,"421103 - FACTURAS NO EMITIDAS POR PAGAR",{"v":-424.14,"d":"-424.14 "}]
[null,null,"421201 - FACTURAS EMITIDAS POR PAGAR M.N. TERCEROS",{"v":-296986.15,"d":"-296,986.15 "}]
[null,null,"421202 - FACTURAS EMITIDAS POR PAGAR M.E. TERCEROS",{"v":-295576.66,"d":"-295,576.66 "}]
[null,null,"421203 - DETRACCIONES POR PAGAR MN",{"v":0,"d":"0.00"}]
[null,null,"424101 - HONORARIOS POR PAGAR M.N.",{"v":-206740.17,"d":"-206,740.17 "}]
[null,null,"424102 - HONORARIOS POR PAGAR M.E.",{"v":-2255.08,"d":"-2,255.08 "}]
[null,null,"Total Cuentas por Pagar Comerciales",{"v":-2146935.1500000004,"d":"-2,146,935.15 "}]

{"sheet":"Anexo 17","index":18,"n_rows":10,"n_cols":4,"rows_kept":10}
[null,"◄ Estado de situación financiera • anexos"]
[null,"MOS Expert CPC Martín Cruz • +51 998 401 784 | Excel No Convencional"]
[]
[]
[null,null,"Detalle del Estado de Situación:","Anexo 17"]
[]
[{"$nulls":3},"S/"]
[null,null,"Otras Cuentas por Pagar a Partes Relacionadas"]
[null,null,"441111 - PRESTAMOS ACCIONISTAS CORTO PLAZO M.N.",{"v":-1200,"d":"-1,200.00 "}]
[null,null,"Total Otras Cuentas por Pagar a Partes Relacionadas",{"v":-1200,"d":"-1,200.00 "}]

{"sheet":"Anexo 18","index":19,"n_rows":29,"n_cols":4,"rows_kept":29}
[null,"◄ Estado de situación financiera • anexos"]
[null,"MOS Expert CPC Martín Cruz • +51 998 401 784 | Excel No Convencional"]
[]
[]
[null,null,"Detalle del Estado de Situación:","Anexo 18"]
[]
[{"$nulls":3},"S/"]
[null,null,"Otras Cuentas por Pagar"]
[null,null,"401101 - IGV POR PAGAR",{"v":54018.49,"d":"54,018.49"}]
[null,null,"401111 - IGV - CUENTA PROPIA",{"v":-35965.39,"d":"-35,965.39 "}]
[null,null,"401701 - RENTA 3RA CAT POR PAGAR (CTE)",{"v":-66346.19,"d":"-66,346.19 "}]
[null,null,"401721 - RENTA DE CUARTA CATEGORIA",{"v":-2529,"d":"-2,529.00 "}]
[null,null,"401722 - RENTA 4TA CAT POR PAGAR (CTE)",{"v":-5128.79,"d":"-5,128.79 "}]
[null,null,"401732 - RENTA 5TA CAT POR PAGAR (CTE)",669.19]
[null,null,"403111 - ESSALUD POR PAGAR (CTE)",{"v":-6843.17,"d":"-6,843.17 "}]
[null,null,"403113 - ESSALUD VIDA POR PAGAR (CTE)",{"v":-49.94,"d":"-49.94 "}]
[null,null,"407111 - AFP POR PAGAR (CTE)",{"v":-11493.01,"d":"-11,493.01 "}]
[null,null,"411101 - SUELDOS",{"v":-704243.83,"d":"-704,243.83 "}]
[null,null,"411104 - FONDO DE TRABAJADORES",{"v":-17002.08,"d":"-17,002.08 "}]
[null,null,"411401 - GRATIFICACIONES EMPLEADOS",{"v":-54425.84,"d":"-54,425.84 "}]
[null,null,"411501 - VACACIONES EMPLEADOS",{"v":-103184.06,"d":"-103,184.06 "}]
[null,null,"413101 - PARTICIPACIONES DE EMPLEADOS",{"v":-11847.53,"d":"-11,847.53 "}]
[null,null,"415101 - C.T.S. EMPLEADOS",{"v":-59735.26,"d":"-59,735.26 "}]
[null,null,"419102 - LIQUIDACIONES POR PAGAR (CTE)",{"v":-174773.23,"d":"-174,773.23 "}]
[null,null,"461101 - RECLAMACIONES DE TERCEROS MN (CTE)",{"v":-14917.32,"d":"-14,917.32 "}]
[null,null,"461102 - RECLAMACIONES DE TERCEROS ME (CTE)",{"v":-3055.6,"d":"-3,055.60 "}]
[null,null,"469902 - CUENTAS POR PAGAR A PERSONAS (REEMBOLSOS)",{"v":-18107.39,"d":"-18,107.39 "}]
[null,null,"469903 - CUENTAS POR PAGAR A TERCEROS",{"v":-915.1,"d":"-915.10 "}]
[null,null,"Total Otras Cuentas por Pagar",{"v":-1235875.05,"d":"-1,235,875.05 "}]

{"sheet":"Anexo 19","index":20,"n_rows":11,"n_cols":4,"rows_kept":11}
[null,"◄ Estado de situación financiera • anexos"]
[null,"MOS Expert CPC Martín Cruz • +51 998 401 784 | Excel No Convencional"]
[]
[]
[null,null,"Detalle del Estado de Situación:","Anexo 19"]
[]
[{"$nulls":3},"S/"]
[null,null,"Cuentas por Pagar Comerciales"]
[null,null,"122121 - ANTICIPOS DE CLIENTES TERCEROS MN (NO CTE)",{"v":-2250.51,"d":"-2,250.51 "}]
[null,null,"421221 - FACTURAS EMITIDAS POR PAGAR MN (NO CTE)",{"v":-475.83,"d":"-475.83 "}]
[null,null,"Total Cuentas por Pagar Comerciales",{"v":-2726.34,"d":"-2,726.34 "}]

{"sheet":"Anexo 20","index":21,"n_rows":13,"n_cols":4,"rows_kept":13}
[null,"◄ Estado de situación financiera • anexos"]
[null,"MOS Expert CPC Martín Cruz • +51 998 401 784 | Excel No Convencional"]
[]
[]
[null,null,"Detalle del Estado de Situación:","Anexo 20"]
[]
[{"$nulls":3},"S/"]
[null,null,"Otras Cuentas por Pagar a Partes Relacionadas"]
[null,null,"441121 - PRESTAMOS ACCIONISTAS LARGO PLAZO M.N.",{"v":-74110.8,"d":"-74,110.80 "}]
[null,null,"471201 - PRESTAMOS RECIBIDOS M.N.",{"v":-26990,"d":"-26,990.00 "}]
[null,null,"471202 - PRESTAMOS RECIBIDOS M.E.",{"v":-752084.3,"d":"-752,084.30 "}]
[null,null,"471203 - PRESTAMOS RECIBIDOS ARBITRAJE MN",{"v":-59830.12,"d":"-59,830.12 "}]
[null,null,"Total Otras Cuentas por Pagar a Partes Relacionadas",{"v":-913015.2200000001,"d":"-913,015.22 "}]

{"sheet":"Anexo 21","index":22,"n_rows":10,"n_cols":4,"rows_kept":10}
[null,"◄ Estado de situación financiera • anexos"]
[null,"MOS Expert CPC Martín Cruz • +51 998 401 784 | Excel No Convencional"]
[]
[]
[null,null,"Detalle del Estado de Situación:","Anexo 21"]
[]
[{"$nulls":3},"S/"]
[null,null,"Pasivos por Impuesto a la Renta y Participaciones Diferidos"]
[null,null,"491201 - IMPUESTO A LA RENTA DIFERIDO -",{"v":-74072.69,"d":"-74,072.69 "}]
[null,null,"Total Pasivos por Impuesto a la Renta y Participaciones Diferidos",{"v":-74072.69,"d":"-74,072.69 "}]

{"sheet":"Anexo 22","index":23,"n_rows":11,"n_cols":4,"rows_kept":11}
[null,"◄ Estado de situación financiera • anexos"]
[null,"MOS Expert CPC Martín Cruz • +51 998 401 784 | Excel No Convencional"]
[]
[]
[null,null,"Detalle del Estado de Situación:","Anexo 22"]
[]
[{"$nulls":3},"S/"]
[null,null,"Otras Cuentas por Pagar"]
[null,null,"461121 - RECLAMACIONES DE TERCEROS MN (NO CTE)",{"v":-30899.41,"d":"-30,899.41 "}]
[null,null,"469904 - OTRAS CUENTAS POR PAGAR (NO CTE)",{"v":-1678.4,"d":"-1,678.40 "}]
[null,null,"Total Otras Cuentas por Pagar",{"v":-32577.81,"d":"-32,577.81 "}]

{"sheet":"Anexo 23","index":24,"n_rows":10,"n_cols":4,"rows_kept":10}
[null,"◄ Estado de situación financiera • anexos"]
[null,"MOS Expert CPC Martín Cruz • +51 998 401 784 | Excel No Convencional"]
[]
[]
[null,null,"Detalle del Estado de Situación:","Anexo 23"]
[]
[{"$nulls":3},"S/"]
[null,null,"Capital"]
[null,null,"501101 - ACCIONES",{"v":-4757986,"d":"-4,757,986.00 "}]
[null,null,"Total Capital",{"v":-4757986,"d":"-4,757,986.00 "}]

{"sheet":"Anexo 24","index":25,"n_rows":10,"n_cols":4,"rows_kept":10}
[null,"◄ Estado de situación financiera • anexos"]
[null,"MOS Expert CPC Martín Cruz • +51 998 401 784 | Excel No Convencional"]
[]
[]
[null,null,"Detalle del Estado de Situación:","Anexo 24"]
[]
[{"$nulls":3},"S/"]
[null,null,"Reservas Legales"]
[null,null,"582101 - RESERVA LEGAL",{"v":-232657,"d":"-232,657.00 "}]
[null,null,"Total Reservas Legales",{"v":-232657,"d":"-232,657.00 "}]

{"sheet":"Anexo 25","index":26,"n_rows":14,"n_cols":4,"rows_kept":14}
[null,"◄ Estado de situación financiera • anexos"]
[null,"MOS Expert CPC Martín Cruz • +51 998 401 784 | Excel No Convencional"]
[]
[]
[null,null,"Detalle del Estado de Situación:","Anexo 25"]
[]
[{"$nulls":3},"S/"]
[null,null,"Resultados Acumulados"]
[null,null,"591101 - UTILIDADES ACUMULADAS",{"v":-1651747.1,"d":"-1,651,747.10 "}]
[null,null,"591102 - UTILIDADES ACUMULADAS-INAFECTA",60.95]
[null,null,"591201 - INGRESOS DE AÑOS ANTERIORES",{"v":-21982.67,"d":"-21,982.67 "}]
[null,null,"591202 - GASTOS DE AÑOS ANTERIORES",{"v":2184.42,"d":"2,184.42"}]
[null,null,"592101 - PERDIDAS ACUMULADAS",{"v":183960.44,"d":"183,960.44"}]
[null,null,"Total Resultados Acumulados",{"v":-1487523.9600000002,"d":"-1,487,523.96 "}]

{"sheet":"Anexo 26","index":27,"n_rows":10,"n_cols":4,"rows_kept":10}
[null,"◄ Estado de situación financiera • anexos"]
[null,"MOS Expert CPC Martín Cruz • +51 998 401 784 | Excel No Convencional"]
[]
[]
[null,null,"Detalle del Estado de Situación:","Anexo 26"]
[]
[{"$nulls":3},"S/"]
[null,null,"Resultado del Ejercicio"]
[null,null,"891101 - RESULTADO DEL EJERCICIO",{"v":629128.8800000001,"d":"629,128.88"}]
[null,null,"Total Resultado del Ejercicio",{"v":629128.8800000001,"d":"629,128.88"}]